[Event "January 9 Late 2024"]
[Site "https://www.chess.com"]
[Date "2024.01.09"]
[Round "6"]
[White "Palencia Morales, Wilson Guillermo"]
[Black "Cardozo Munar, Carlos Eduardo"]
[Result "1/2-1/2"]
[Board "169"]
[TimeControl "180+1"]
[WhiteFideId "4401859"]
[BlackFideId "4409477"]
[WhiteElo "2471"]
[BlackElo "2213"]
[WhiteTeam "COL"]
[BlackTeam "COL"]
[WhiteClock "0:00:08"]
[BlackClock "0:00:06"]

1. d4 {[%clk 0:03:00]}  d5 {[%clk 0:02:55]} 2. c4 {[%clk 0:03:00]}  e5 {[%clk 0:02:55]} 3. dxe5 {[%clk 0:02:51]}  d4 {[%clk 0:02:56]} 4. Nf3 {[%clk 0:02:51]}  Nc6 {[%clk 0:02:55]} 5. g3 {[%clk 0:02:52]}  Nge7 {[%clk 0:02:54]} 6. Bg2 {[%clk 0:02:46]}  Ng6 {[%clk 0:02:52]} 7. O-O {[%clk 0:02:45]}  Bg4 {[%clk 0:02:48]} 8. Nbd2 {[%clk 0:02:43]}  Qd7 {[%clk 0:02:48]} 9. Qa4 {[%clk 0:02:22]}  h5 {[%clk 0:02:47]} 10. Re1 {[%clk 0:02:11]}  h4 {[%clk 0:02:46]} 11. a3 {[%clk 0:02:09]}  hxg3 {[%clk 0:02:46]} 12. hxg3 {[%clk 0:01:42]}  Bh3 {[%clk 0:02:18]} 13. Bh1 {[%clk 0:01:39]}  f6 {[%clk 0:02:12]} 14. e6 {[%clk 0:01:23]}  Bxe6 {[%clk 0:02:10]} 15. b4 {[%clk 0:01:19]}  Nce5 {[%clk 0:01:39]} 16. Qxd7+ {[%clk 0:01:07]}  Kxd7 {[%clk 0:01:34]} 17. Nxd4 {[%clk 0:01:06]}  Nxc4 {[%clk 0:01:31]} 18. Nxc4 {[%clk 0:01:06]}  Bxc4 {[%clk 0:01:32]} 19. Bxb7 {[%clk 0:01:05]}  Rb8 {[%clk 0:01:10]} 20. Bc6+ {[%clk 0:01:05]}  Kd8 {[%clk 0:01:05]} 21. Be4 {[%clk 0:01:02]}  Ne5 {[%clk 0:01:02]} 22. Bf4 {[%clk 0:00:59]}  Bd6 {[%clk 0:01:01]} 23. Bxe5 {[%clk 0:00:58]}  Bxe5 {[%clk 0:00:55]} 24. Nc6+ {[%clk 0:00:58]}  Kd7 {[%clk 0:00:47]} 25. Rad1+ {[%clk 0:00:51]}  Ke6 {[%clk 0:00:47]} 26. Nxb8 {[%clk 0:00:46]}  Rxb8 {[%clk 0:00:45]} 27. Rc1 {[%clk 0:00:46]}  Bb5 {[%clk 0:00:40]} 28. e3 {[%clk 0:00:43]}  g5 {[%clk 0:00:38]} 29. f4 {[%clk 0:00:23]}  Bd6 {[%clk 0:00:38]} 30. Kf2 {[%clk 0:00:22]}  a5 {[%clk 0:00:35]} 31. Bc6 {[%clk 0:00:20]}  Bxc6 {[%clk 0:00:32]} 32. Rxc6 {[%clk 0:00:19]}  axb4 {[%clk 0:00:32]} 33. axb4 {[%clk 0:00:18]}  Rxb4 {[%clk 0:00:33]} 34. Rec1 {[%clk 0:00:19]}  gxf4 {[%clk 0:00:30]} 35. gxf4 {[%clk 0:00:19]}  Kf5 {[%clk 0:00:27]} 36. Kf3 {[%clk 0:00:19]}  Rb2 {[%clk 0:00:24]} 37. e4+ {[%clk 0:00:17]}  Ke6 {[%clk 0:00:21]} 38. e5 {[%clk 0:00:17]}  fxe5 {[%clk 0:00:21]} 39. fxe5 {[%clk 0:00:13]}  Kxe5 {[%clk 0:00:21]} 40. R1c2 {[%clk 0:00:13]}  Rb3+ {[%clk 0:00:21]} 41. R6c3 {[%clk 0:00:12]}  Rb4 {[%clk 0:00:20]} 42. Rc4 {[%clk 0:00:12]}  Rb3+ {[%clk 0:00:20]} 43. R2c3 {[%clk 0:00:13]}  Rxc3+ {[%clk 0:00:19]} 44. Rxc3 {[%clk 0:00:13]}  Kd4 {[%clk 0:00:20]} 45. Rc1 {[%clk 0:00:13]}  Kd3 {[%clk 0:00:16]} 46. Rd1+ {[%clk 0:00:11]}  Kc2 {[%clk 0:00:16]} 47. Rd5 {[%clk 0:00:11]}  Kc3 {[%clk 0:00:15]} 48. Ke4 {[%clk 0:00:09]}  Kc4 {[%clk 0:00:15]} 49. Rd1 {[%clk 0:00:10]}  Bb4 {[%clk 0:00:14]} 50. Rc1+ {[%clk 0:00:09]}  Bc3 {[%clk 0:00:13]} 51. Ke3 {[%clk 0:00:07]}  c5 {[%clk 0:00:11]} 52. Rb1 {[%clk 0:00:05]}  Kd5 {[%clk 0:00:10]} 53. Kd3 {[%clk 0:00:05]}  Bd4 {[%clk 0:00:10]} 54. Rh1 {[%clk 0:00:06]}  c4+ {[%clk 0:00:08]} 55. Kc2 {[%clk 0:00:06]}  Kc5 {[%clk 0:00:08]} 56. Rh5+ {[%clk 0:00:07]}  Kb4 {[%clk 0:00:08]} 57. Rh4 {[%clk 0:00:08]}  Kc5 {[%clk 0:00:09]} 58. Rg4 {[%clk 0:00:08]}  Bf2 {[%clk 0:00:06]} 59. Rf4 {[%clk 0:00:08]}  Be1 {[%clk 0:00:06]} 60. Rf5+ {[%clk 0:00:07]}  Kd4 {[%clk 0:00:06]} 61. Rf1 {[%clk 0:00:08]}  Bg3 {[%clk 0:00:04]} 62. Rf3 {[%clk 0:00:08]}  Be5 {[%clk 0:00:04]} 63. Rh3 {[%clk 0:00:08]}  Kd5 {[%clk 0:00:04]} 64. Rh5 {[%clk 0:00:08]}  Kd4 {[%clk 0:00:04]} 65. Rh4+ {[%clk 0:00:08]}  Kd5 {[%clk 0:00:05]} 66. Rg4 {[%clk 0:00:09]}  Bd4 {[%clk 0:00:05]} 67. Rf4 {[%clk 0:00:08]}  Kc5 {[%clk 0:00:06]} 68. Rg4 {[%clk 0:00:07]}  Kd5 {[%clk 0:00:05]} 69. Kd2 {[%clk 0:00:08]}  Kc5 {[%clk 0:00:06]} 70. Kc2 {[%clk 0:00:08]} 1/2-1/2

[Event "January 9 Late 2024"]
[Site "https://www.chess.com"]
[Date "2024.01.09"]
[Round "6"]
[White "Ferriz Barrios, Andres"]
[Black "Balla, Tamas-Kristof"]
[Result "1-0"]
[Board "170"]
[TimeControl "180+1"]
[WhiteFideId "5104467"]
[BlackFideId "1208497"]
[WhiteElo "2216"]
[BlackElo "2428"]
[WhiteTeam "MEX"]
[BlackTeam "ROU"]
[WhiteClock "0:02:09"]
[BlackClock "0:00:13"]

1. e4 {[%clk 0:03:00]}  c5 {[%clk 0:02:58]} 2. d4 {[%clk 0:02:58]}  cxd4 {[%clk 0:02:55]} 3. c3 {[%clk 0:02:58]}  Nf6 {[%clk 0:02:55]} 4. e5 {[%clk 0:02:58]}  Nd5 {[%clk 0:02:55]} 5. Bc4 {[%clk 0:02:52]}  Nb6 {[%clk 0:02:49]} 6. Bb3 {[%clk 0:02:52]}  Nc6 {[%clk 0:02:46]} 7. Nf3 {[%clk 0:02:52]}  d6 {[%clk 0:02:45]} 8. exd6 {[%clk 0:02:46]}  Qxd6 {[%clk 0:02:40]} 9. cxd4 {[%clk 0:02:46]}  e6 {[%clk 0:02:38]} 10. O-O {[%clk 0:02:46]}  Be7 {[%clk 0:02:38]} 11. Nc3 {[%clk 0:02:45]}  O-O {[%clk 0:02:38]} 12. Ne4 {[%clk 0:02:45]}  Qd8 {[%clk 0:02:36]} 13. Re1 {[%clk 0:02:45]}  Nd5 {[%clk 0:02:35]} 14. a3 {[%clk 0:02:42]}  b6 {[%clk 0:02:30]} 15. Bc2 {[%clk 0:02:42]}  a5 {[%clk 0:02:15]} 16. Bb1 {[%clk 0:02:42]}  Ba6 {[%clk 0:02:02]} 17. Neg5 {[%clk 0:02:41]}  h6 {[%clk 0:01:57]} 18. Qc2 {[%clk 0:02:39]}  Nf6 {[%clk 0:01:49]} 19. Rxe6 {[%clk 0:02:29]}  Nxd4 {[%clk 0:01:38]} 20. Nxd4 {[%clk 0:02:27]}  Rc8 {[%clk 0:01:38]} 21. Nc6 {[%clk 0:02:26]}  Rxc6 {[%clk 0:01:33]} 22. Rxc6 {[%clk 0:02:24]}  hxg5 {[%clk 0:01:33]} 23. Bxg5 {[%clk 0:02:23]}  g6 {[%clk 0:00:52]} 24. Ba2 {[%clk 0:02:23]}  Kg7 {[%clk 0:00:50]} 25. Rd1 {[%clk 0:02:20]}  Qb8 {[%clk 0:00:44]} 26. Rc7 {[%clk 0:02:19]}  Bc5 {[%clk 0:00:39]} 27. Qc3 {[%clk 0:02:11]}  Qxc7 {[%clk 0:00:28]} 28. Bxf6+ {[%clk 0:02:10]}  Kg8 {[%clk 0:00:24]} 29. Qh3 {[%clk 0:02:09]}  Bxf2+ {[%clk 0:00:13]} 30. Kh1 {[%clk 0:02:09]} 1-0

[Event "January 9 Late 2024"]
[Site "https://www.chess.com"]
[Date "2024.01.09"]
[Round "6"]
[White "Korkmaz, Necmettin"]
[Black "Sailer, Mike"]
[Result "1-0"]
[Board "171"]
[TimeControl "180+1"]
[WhiteFideId "6303285"]
[BlackFideId "2012901"]
[WhiteElo "2417"]
[BlackElo "2209"]
[WhiteTeam "TUR"]
[BlackTeam "USA"]
[WhiteClock "0:00:52"]
[BlackClock "0:00:00"]

1. e4 {[%clk 0:03:00]}  d5 {[%clk 0:02:59]} 2. exd5 {[%clk 0:03:00]}  Qxd5 {[%clk 0:02:54]} 3. Nc3 {[%clk 0:03:00]}  Qd6 {[%clk 0:02:51]} 4. d4 {[%clk 0:02:59]}  c6 {[%clk 0:02:48]} 5. Nf3 {[%clk 0:02:59]}  Bg4 {[%clk 0:02:43]} 6. Be2 {[%clk 0:02:33]}  e6 {[%clk 0:02:40]} 7. O-O {[%clk 0:02:32]}  Nf6 {[%clk 0:02:37]} 8. h3 {[%clk 0:02:30]}  Bxf3 {[%clk 0:02:36]} 9. Bxf3 {[%clk 0:02:30]}  Nbd7 {[%clk 0:02:34]} 10. Re1 {[%clk 0:02:30]}  Be7 {[%clk 0:02:34]} 11. Be3 {[%clk 0:02:28]}  O-O {[%clk 0:02:32]} 12. Ne4 {[%clk 0:02:25]}  Nxe4 {[%clk 0:02:31]} 13. Bxe4 {[%clk 0:02:25]}  Nf6 {[%clk 0:02:32]} 14. Bd3 {[%clk 0:02:25]}  Nd5 {[%clk 0:02:28]} 15. Bd2 {[%clk 0:02:25]}  Bd8 {[%clk 0:02:27]} 16. Qe2 {[%clk 0:02:13]}  Bc7 {[%clk 0:02:26]} 17. g3 {[%clk 0:02:12]}  Rae8 {[%clk 0:02:21]} 18. c4 {[%clk 0:02:07]}  Ne7 {[%clk 0:02:09]} 19. Rad1 {[%clk 0:02:01]}  Ng6 {[%clk 0:01:55]} 20. Bc3 {[%clk 0:01:56]}  f5 {[%clk 0:01:40]} 21. f4 {[%clk 0:01:44]}  Re7 {[%clk 0:01:13]} 22. a3 {[%clk 0:01:37]}  a5 {[%clk 0:01:12]} 23. Qf3 {[%clk 0:01:28]}  c5 {[%clk 0:01:01]} 24. d5 {[%clk 0:01:09]}  exd5 {[%clk 0:00:58]} 25. Qxd5+ {[%clk 0:01:09]}  Qxd5 {[%clk 0:00:58]} 26. cxd5 {[%clk 0:01:09]}  Rfe8 {[%clk 0:00:46]} 27. Rxe7 {[%clk 0:01:06]}  Rxe7 {[%clk 0:00:47]} 28. Bxf5 {[%clk 0:01:06]}  Re3 {[%clk 0:00:47]} 29. Kg2 {[%clk 0:01:02]}  Bd6 {[%clk 0:00:23]} 30. Kf2 {[%clk 0:00:58]}  Re8 {[%clk 0:00:07]} 31. Bxg6 {[%clk 0:00:58]}  hxg6 {[%clk 0:00:07]} 32. Re1 {[%clk 0:00:58]}  Rxe1 {[%clk 0:00:05]} 33. Kxe1 {[%clk 0:00:58]}  b6 {[%clk 0:00:06]} 34. Ke2 {[%clk 0:00:57]}  Kf7 {[%clk 0:00:07]} 35. a4 {[%clk 0:00:56]}  Ke7 {[%clk 0:00:08]} 36. Bxg7 {[%clk 0:00:53]}  g5 {[%clk 0:00:00]} 37. Be5 {[%clk 0:00:52]} 1-0

[Event "January 9 Late 2024"]
[Site "https://www.chess.com"]
[Date "2024.01.10"]
[Round "6"]
[White "Goncalves, Samuel Jesus P"]
[Black "Varela La Madrid, Maria"]
[Result "0-1"]
[Board "172"]
[TimeControl "180+1"]
[WhiteFideId "1945130"]
[BlackFideId "3903346"]
[WhiteElo "2404"]
[BlackElo "2174"]
[WhiteTeam "POR"]
[BlackTeam "VEN"]
[WhiteClock "0:00:00"]
[BlackClock "0:00:10"]

1. Nf3 {[%clk 0:03:00]}  d5 {[%clk 0:02:59]} 2. g3 {[%clk 0:03:01]}  g6 {[%clk 0:02:56]} 3. Bg2 {[%clk 0:03:00]}  Bg7 {[%clk 0:02:56]} 4. d4 {[%clk 0:03:01]}  Nf6 {[%clk 0:02:56]} 5. O-O {[%clk 0:03:01]}  O-O {[%clk 0:02:56]} 6. c3 {[%clk 0:03:00]}  Nbd7 {[%clk 0:02:49]} 7. Bf4 {[%clk 0:02:54]}  c5 {[%clk 0:02:48]} 8. Ne5 {[%clk 0:02:46]}  b6 {[%clk 0:02:19]} 9. dxc5 {[%clk 0:02:26]}  Nxc5 {[%clk 0:02:16]} 10. c4 {[%clk 0:02:16]}  Bb7 {[%clk 0:02:14]} 11. Nc3 {[%clk 0:02:08]}  d4 {[%clk 0:01:45]} 12. Bxb7 {[%clk 0:02:01]}  Nxb7 {[%clk 0:01:46]} 13. Nc6 {[%clk 0:01:54]}  Qd7 {[%clk 0:01:41]} 14. Ne5 {[%clk 0:01:43]}  Qh3 {[%clk 0:01:35]} 15. Nb5 {[%clk 0:01:25]}  Rfd8 {[%clk 0:01:23]} 16. f3 {[%clk 0:01:01]}  Nh5 {[%clk 0:01:15]} 17. Nc6 {[%clk 0:00:52]}  Nxf4 {[%clk 0:01:10]} 18. gxf4 {[%clk 0:00:51]}  Rd7 {[%clk 0:01:05]} 19. Nbxd4 {[%clk 0:00:34]}  Na5 {[%clk 0:00:40]} 20. Ne5 {[%clk 0:00:19]}  Bxe5 {[%clk 0:00:34]} 21. fxe5 {[%clk 0:00:20]}  Rad8 {[%clk 0:00:33]} 22. e3 {[%clk 0:00:18]}  Nxc4 {[%clk 0:00:32]} 23. Qe2 {[%clk 0:00:19]}  Nxe5 {[%clk 0:00:28]} 24. Rad1 {[%clk 0:00:16]}  Qh4 {[%clk 0:00:23]} 25. Kg2 {[%clk 0:00:10]}  g5 {[%clk 0:00:22]} 26. Nf5 {[%clk 0:00:07]}  Qh5 {[%clk 0:00:19]} 27. Nxe7+ {[%clk 0:00:06]}  Kf8 {[%clk 0:00:17]} 28. Rxd7 {[%clk 0:00:05]}  Rxd7 {[%clk 0:00:16]} 29. Nf5 {[%clk 0:00:06]}  g4 {[%clk 0:00:16]} 30. fxg4 {[%clk 0:00:02]}  Nxg4 {[%clk 0:00:15]} 31. Ng3 {[%clk 0:00:02]}  Qd5+ {[%clk 0:00:12]} 32. Qf3 {[%clk 0:00:00]}  Nxe3+ {[%clk 0:00:10]} 0-1

[Event "January 9 Late 2024"]
[Site "https://www.chess.com"]
[Date "2024.01.09"]
[Round "6"]
[White "Vila Dupla, Aurelio"]
[Black "Poddubnyi, Viktor"]
[Result "0-1"]
[Board "173"]
[TimeControl "180+1"]
[WhiteFideId "2203383"]
[BlackFideId "4141989"]
[WhiteElo "2171"]
[BlackElo "2398"]
[WhiteTeam "ESP"]
[BlackTeam "RUS"]
[WhiteClock "0:00:05"]
[BlackClock "0:00:12"]

1. Nf3 {[%clk 0:03:00]}  g6 {[%clk 0:02:59]} 2. d4 {[%clk 0:02:59]}  Bg7 {[%clk 0:03:00]} 3. c4 {[%clk 0:02:59]}  c5 {[%clk 0:02:59]} 4. e4 {[%clk 0:02:58]}  cxd4 {[%clk 0:02:56]} 5. Nxd4 {[%clk 0:02:58]}  Nc6 {[%clk 0:02:57]} 6. Be3 {[%clk 0:02:58]}  Nf6 {[%clk 0:02:57]} 7. Nc3 {[%clk 0:02:55]}  O-O {[%clk 0:02:57]} 8. Be2 {[%clk 0:02:54]}  d6 {[%clk 0:02:58]} 9. O-O {[%clk 0:02:54]}  a6 {[%clk 0:02:56]} 10. f3 {[%clk 0:02:54]}  Bd7 {[%clk 0:02:50]} 11. Qd2 {[%clk 0:02:53]}  Nxd4 {[%clk 0:02:43]} 12. Bxd4 {[%clk 0:02:53]}  Qa5 {[%clk 0:02:43]} 13. a3 {[%clk 0:02:51]}  Rfc8 {[%clk 0:02:32]} 14. b4 {[%clk 0:02:51]}  Qd8 {[%clk 0:02:30]} 15. Rac1 {[%clk 0:02:33]}  a5 {[%clk 0:02:24]} 16. Nd5 {[%clk 0:02:32]}  Nxd5 {[%clk 0:02:17]} 17. cxd5 {[%clk 0:02:31]}  Bxd4+ {[%clk 0:02:07]} 18. Qxd4 {[%clk 0:02:32]}  axb4 {[%clk 0:02:07]} 19. axb4 {[%clk 0:02:18]}  Rxc1 {[%clk 0:01:58]} 20. Rxc1 {[%clk 0:02:17]}  Rc8 {[%clk 0:01:59]} 21. Rxc8 {[%clk 0:02:03]}  Qxc8 {[%clk 0:02:00]} 22. Qc4 {[%clk 0:02:03]}  Qa8 {[%clk 0:01:31]} 23. Qd4 {[%clk 0:02:01]}  Qa2 {[%clk 0:01:26]} 24. Bf1 {[%clk 0:01:40]}  Qc2 {[%clk 0:00:49]} 25. h4 {[%clk 0:01:23]}  f6 {[%clk 0:00:47]} 26. Kh2 {[%clk 0:01:17]}  Kf7 {[%clk 0:00:45]} 27. Bc4 {[%clk 0:01:12]}  Qb1 {[%clk 0:00:39]} 28. Be2 {[%clk 0:01:01]}  Qe1 {[%clk 0:00:36]} 29. Bc4 {[%clk 0:00:44]}  Qxh4+ {[%clk 0:00:35]} 30. Kg1 {[%clk 0:00:41]}  Qe1+ {[%clk 0:00:36]} 31. Kh2 {[%clk 0:00:31]}  Qxb4 {[%clk 0:00:35]} 32. Qd3 {[%clk 0:00:31]}  b5 {[%clk 0:00:33]} 33. Ba2 {[%clk 0:00:31]}  Qb2 {[%clk 0:00:29]} 34. Bb1 {[%clk 0:00:30]}  b4 {[%clk 0:00:27]} 35. f4 {[%clk 0:00:30]}  Qc1 {[%clk 0:00:21]} 36. Kg3 {[%clk 0:00:26]}  Qc3 {[%clk 0:00:19]} 37. Kf3 {[%clk 0:00:17]}  Qxd3+ {[%clk 0:00:17]} 38. Bxd3 {[%clk 0:00:17]}  Ba4 {[%clk 0:00:17]} 39. Ke3 {[%clk 0:00:15]}  h5 {[%clk 0:00:15]} 40. Kd4 {[%clk 0:00:14]}  Bb3 {[%clk 0:00:12]} 41. g3 {[%clk 0:00:11]}  g5 {[%clk 0:00:11]} 42. e5 {[%clk 0:00:08]}  h4 {[%clk 0:00:11]} 43. e6+ {[%clk 0:00:07]}  Kg7 {[%clk 0:00:11]} 44. fxg5 {[%clk 0:00:06]}  fxg5 {[%clk 0:00:11]} 45. gxh4 {[%clk 0:00:05]}  gxh4 {[%clk 0:00:12]} 0-1

[Event "January 9 Late 2024"]
[Site "https://www.chess.com"]
[Date "2024.01.09"]
[Round "6"]
[White "Bueno, Alfeu Junior Varela"]
[Black "Jing, Andrew"]
[Result "0-1"]
[Board "174"]
[TimeControl "180+1"]
[WhiteFideId "2108879"]
[BlackFideId "30984076"]
[WhiteElo "2389"]
[BlackElo "2156"]
[WhiteTeam "BRA"]
[BlackTeam "USA"]
[WhiteClock "0:00:08"]
[BlackClock "0:02:13"]

1. e4 {[%clk 0:02:58]}  e5 {[%clk 0:02:59]} 2. Nc3 {[%clk 0:02:58]}  Nf6 {[%clk 0:02:58]} 3. f4 {[%clk 0:02:58]}  d5 {[%clk 0:02:59]} 4. fxe5 {[%clk 0:02:58]}  Nxe4 {[%clk 0:02:59]} 5. Qf3 {[%clk 0:02:59]}  f5 {[%clk 0:02:59]} 6. d3 {[%clk 0:02:59]}  Nxc3 {[%clk 0:02:58]} 7. bxc3 {[%clk 0:03:00]}  d4 {[%clk 0:02:59]} 8. Qg3 {[%clk 0:02:59]}  dxc3 {[%clk 0:02:59]} 9. Be2 {[%clk 0:02:51]}  Be6 {[%clk 0:02:58]} 10. Be3 {[%clk 0:02:42]}  Nc6 {[%clk 0:02:57]} 11. Nf3 {[%clk 0:02:42]}  Be7 {[%clk 0:02:57]} 12. Qxg7 {[%clk 0:02:34]}  Rg8 {[%clk 0:02:57]} 13. Qxh7 {[%clk 0:02:34]}  Qd5 {[%clk 0:02:56]} 14. Qh5+ {[%clk 0:02:20]}  Kd7 {[%clk 0:02:53]} 15. Ng1 {[%clk 0:00:59]}  Nxe5 {[%clk 0:02:42]} 16. Bf3 {[%clk 0:00:54]}  Nxf3+ {[%clk 0:02:42]} 17. Qxf3 {[%clk 0:00:53]}  Rxg2 {[%clk 0:02:42]} 18. Qxd5+ {[%clk 0:00:40]}  Bxd5 {[%clk 0:02:43]} 19. Ne2 {[%clk 0:00:40]}  Bf3 {[%clk 0:02:28]} 20. Nd4 {[%clk 0:00:28]}  Bd5 {[%clk 0:02:28]} 21. Ne2 {[%clk 0:00:27]}  Bd6 {[%clk 0:02:23]} 22. Rf1 {[%clk 0:00:20]}  Re8 {[%clk 0:02:20]} 23. Bf4 {[%clk 0:00:08]}  Rexe2+ {[%clk 0:02:13]} 0-1

[Event "January 9 Late 2024"]
[Site "https://www.chess.com"]
[Date "2024.01.09"]
[Round "6"]
[White "Michalski, Olaf"]
[Black "Sanchez Alvares, Kelvin Antonio"]
[Result "0-1"]
[Board "176"]
[TimeControl "180+1"]
[WhiteFideId "1106740"]
[BlackFideId "3906680"]
[WhiteElo "2154"]
[BlackElo "2345"]
[WhiteTeam "POL"]
[BlackTeam "VEN"]
[WhiteClock "0:00:00"]
[BlackClock "0:00:10"]

1. d4 {[%clk 0:03:00]}  d5 {[%clk 0:02:58]} 2. c4 {[%clk 0:03:00]}  c6 {[%clk 0:02:57]} 3. cxd5 {[%clk 0:02:59]}  cxd5 {[%clk 0:02:58]} 4. Nc3 {[%clk 0:02:59]}  Nf6 {[%clk 0:02:58]} 5. Nf3 {[%clk 0:02:59]}  Nc6 {[%clk 0:02:57]} 6. Bf4 {[%clk 0:02:59]}  Bf5 {[%clk 0:02:57]} 7. e3 {[%clk 0:02:59]}  e6 {[%clk 0:02:52]} 8. Ne5 {[%clk 0:02:59]}  Bd6 {[%clk 0:02:41]} 9. Qb3 {[%clk 0:02:45]}  Qb6 {[%clk 0:02:23]} 10. Bb5 {[%clk 0:01:05]}  Bxe5 {[%clk 0:02:00]} 11. Bxe5 {[%clk 0:00:58]}  O-O {[%clk 0:01:44]} 12. Bxf6 {[%clk 0:00:51]}  gxf6 {[%clk 0:01:45]} 13. O-O {[%clk 0:00:31]}  a6 {[%clk 0:01:39]} 14. Bxc6 {[%clk 0:00:31]}  Qxb3 {[%clk 0:01:39]} 15. axb3 {[%clk 0:00:30]}  bxc6 {[%clk 0:01:39]} 16. Na4 {[%clk 0:00:24]}  Rfb8 {[%clk 0:01:04]} 17. Nc5 {[%clk 0:00:23]}  Kg7 {[%clk 0:01:03]} 18. Ra3 {[%clk 0:00:18]}  Rb5 {[%clk 0:01:00]} 19. Rfa1 {[%clk 0:00:16]}  a5 {[%clk 0:00:59]} 20. Kf1 {[%clk 0:00:13]}  Bc2 {[%clk 0:00:55]} 21. Ke1 {[%clk 0:00:12]}  Rab8 {[%clk 0:00:54]} 22. Rxa5 {[%clk 0:00:10]}  Bxb3 {[%clk 0:00:52]} 23. Rxb5 {[%clk 0:00:06]}  Rxb5 {[%clk 0:00:53]} 24. Ra7 {[%clk 0:00:05]}  Kg6 {[%clk 0:00:45]} 25. Kd2 {[%clk 0:00:06]}  Bc4 {[%clk 0:00:44]} 26. Kc3 {[%clk 0:00:06]}  Bf1 {[%clk 0:00:44]} 27. g3 {[%clk 0:00:05]}  Bc4 {[%clk 0:00:42]} 28. b3 {[%clk 0:00:05]}  Be2 {[%clk 0:00:42]} 29. Rc7 {[%clk 0:00:05]}  Rb6 {[%clk 0:00:40]} 30. Rc8 {[%clk 0:00:04]}  Kg7 {[%clk 0:00:36]} 31. h4 {[%clk 0:00:04]}  e5 {[%clk 0:00:21]} 32. Rc7 {[%clk 0:00:04]}  exd4+ {[%clk 0:00:18]} 33. exd4 {[%clk 0:00:04]}  Bb5 {[%clk 0:00:18]} 34. Ne6+ {[%clk 0:00:03]}  Kg6 {[%clk 0:00:17]} 35. Nd8 {[%clk 0:00:02]}  Rb8 {[%clk 0:00:16]} 36. Nxf7 {[%clk 0:00:02]}  Re8 {[%clk 0:00:14]} 37. Nd6 {[%clk 0:00:01]}  Re2 {[%clk 0:00:14]} 38. f4 {[%clk 0:00:01]}  Re3+ {[%clk 0:00:13]} 39. Kb4 {[%clk 0:00:01]}  Rxg3 {[%clk 0:00:12]} 40. f5+ {[%clk 0:00:02]}  Kh5 {[%clk 0:00:10]} 41. Rxh7+ {[%clk 0:00:01]}  Kg4 {[%clk 0:00:09]} 42. Rg7+ {[%clk 0:00:01]}  Kxh4 {[%clk 0:00:10]} 43. Rxg3 {[%clk 0:00:02]}  Kxg3 {[%clk 0:00:10]} 44. Ne8 {[%clk 0:00:01]}  Kf4 {[%clk 0:00:10]} 45. Nxf6 {[%clk 0:00:01]}  Kxf5 {[%clk 0:00:10]} 46. Nd7 {[%clk 0:00:01]}  Ke4 {[%clk 0:00:10]} 47. Kc5 {[%clk 0:00:00]}  Kd3 {[%clk 0:00:10]} 0-1

[Event "January 9 Late 2024"]
[Site "https://www.chess.com"]
[Date "2024.01.09"]
[Round "6"]
[White "Harrington, Steve"]
[Black "Szente Varga, Fruzsina"]
[Result "1-0"]
[Board "179"]
[TimeControl "180+1"]
[WhiteFideId "2038730"]
[BlackFideId "712264"]
[WhiteElo "2138"]
[BlackElo "2299"]
[WhiteTeam "USA"]
[BlackTeam "HUN"]
[WhiteClock "0:00:38"]
[BlackClock "0:00:17"]

1. e4 {[%clk 0:03:00]}  e6 {[%clk 0:02:58]} 2. d3 {[%clk 0:03:00]}  d5 {[%clk 0:02:58]} 3. f4 {[%clk 0:02:59]}  dxe4 {[%clk 0:02:57]} 4. Nc3 {[%clk 0:02:58]}  exd3 {[%clk 0:02:55]} 5. Bxd3 {[%clk 0:02:59]}  c5 {[%clk 0:02:51]} 6. Qe2 {[%clk 0:02:58]}  Nc6 {[%clk 0:02:50]} 7. Nf3 {[%clk 0:02:57]}  Be7 {[%clk 0:02:49]} 8. Be3 {[%clk 0:02:50]}  Nf6 {[%clk 0:02:49]} 9. O-O-O {[%clk 0:02:49]}  Qa5 {[%clk 0:02:43]} 10. Ne5 {[%clk 0:02:46]}  Nd4 {[%clk 0:02:40]} 11. Qf2 {[%clk 0:02:45]}  Nf5 {[%clk 0:02:24]} 12. Bb5+ {[%clk 0:02:31]}  Kf8 {[%clk 0:02:18]} 13. Bxc5 {[%clk 0:02:26]}  Qc7 {[%clk 0:01:52]} 14. Bxe7+ {[%clk 0:02:18]}  Nxe7 {[%clk 0:01:53]} 15. g4 {[%clk 0:02:02]}  a6 {[%clk 0:01:50]} 16. Bd3 {[%clk 0:01:59]}  b5 {[%clk 0:01:44]} 17. Ne4 {[%clk 0:01:46]}  Bb7 {[%clk 0:01:41]} 18. Ng5 {[%clk 0:01:33]}  Bxh1 {[%clk 0:01:35]} 19. Nexf7 {[%clk 0:01:24]}  Qc6 {[%clk 0:01:11]} 20. Nxh8 {[%clk 0:01:20]}  h6 {[%clk 0:01:01]} 21. Nh3 {[%clk 0:01:08]}  Be4 {[%clk 0:00:59]} 22. g5 {[%clk 0:01:04]}  Ng4 {[%clk 0:00:52]} 23. Qe2 {[%clk 0:00:57]}  Bf3 {[%clk 0:00:51]} 24. Qe1 {[%clk 0:00:47]}  Bxd1 {[%clk 0:00:46]} 25. Qxd1 {[%clk 0:00:48]}  Ne3 {[%clk 0:00:44]} 26. Qh5 {[%clk 0:00:40]}  N3f5 {[%clk 0:00:17]} 27. Qf7# {[%clk 0:00:38]} 1-0

[Event "January 9 Late 2024"]
[Site "https://www.chess.com"]
[Date "2024.01.09"]
[Round "6"]
[White "Harish, Neeraj"]
[Black "Fareh, Youness"]
[Result "1-0"]
[Board "185"]
[TimeControl "180+1"]
[WhiteFideId "30958130"]
[BlackFideId "9000526"]
[WhiteElo "2251"]
[BlackElo "2039"]
[WhiteTeam "USA"]
[BlackTeam "MAR"]
[WhiteClock "0:00:05"]
[BlackClock "0:00:07"]

1. e4 {[%clk 0:03:00]}  c5 {[%clk 0:02:59]} 2. Nf3 {[%clk 0:03:00]}  Nc6 {[%clk 0:02:59]} 3. d4 {[%clk 0:03:01]}  cxd4 {[%clk 0:02:59]} 4. Nxd4 {[%clk 0:03:02]}  Nf6 {[%clk 0:02:59]} 5. Nc3 {[%clk 0:03:01]}  e6 {[%clk 0:02:58]} 6. Ndb5 {[%clk 0:02:59]}  Bb4 {[%clk 0:02:57]} 7. a3 {[%clk 0:02:55]}  Bxc3+ {[%clk 0:02:57]} 8. Nxc3 {[%clk 0:02:56]}  d5 {[%clk 0:02:55]} 9. Bd3 {[%clk 0:02:48]}  O-O {[%clk 0:02:50]} 10. O-O {[%clk 0:02:47]}  h6 {[%clk 0:02:38]} 11. Bf4 {[%clk 0:02:22]}  e5 {[%clk 0:02:27]} 12. Bg3 {[%clk 0:02:15]}  d4 {[%clk 0:02:26]} 13. Ne2 {[%clk 0:02:10]}  Nh5 {[%clk 0:02:17]} 14. f4 {[%clk 0:02:07]}  Nxg3 {[%clk 0:02:15]} 15. hxg3 {[%clk 0:02:07]}  f6 {[%clk 0:02:10]} 16. Qd2 {[%clk 0:01:52]}  Qb6 {[%clk 0:02:07]} 17. b3 {[%clk 0:01:45]}  Be6 {[%clk 0:01:59]} 18. f5 {[%clk 0:01:38]}  Bf7 {[%clk 0:01:58]} 19. g4 {[%clk 0:01:39]}  Rfc8 {[%clk 0:01:54]} 20. Kf2 {[%clk 0:01:36]}  Rc7 {[%clk 0:01:53]} 21. Rh1 {[%clk 0:01:18]}  Ne7 {[%clk 0:01:43]} 22. Rh2 {[%clk 0:01:09]}  Qc5 {[%clk 0:01:29]} 23. Rah1 {[%clk 0:01:03]}  Kf8 {[%clk 0:01:15]} 24. Ng3 {[%clk 0:00:20]}  Qxa3 {[%clk 0:01:13]} 25. Nh5 {[%clk 0:00:19]}  Bxh5 {[%clk 0:01:12]} 26. Rxh5 {[%clk 0:00:19]}  Rac8 {[%clk 0:01:00]} 27. Rxh6 {[%clk 0:00:18]}  gxh6 {[%clk 0:01:00]} 28. Qxh6+ {[%clk 0:00:16]}  Ke8 {[%clk 0:00:59]} 29. Qxf6 {[%clk 0:00:14]}  Ng8 {[%clk 0:00:35]} 30. Rh8 {[%clk 0:00:13]}  Qf8 {[%clk 0:00:31]} 31. Qe6+ {[%clk 0:00:11]}  Kd8 {[%clk 0:00:30]} 32. Rxg8 {[%clk 0:00:11]}  Rxc2+ {[%clk 0:00:27]} 33. Bxc2 {[%clk 0:00:09]}  Rxc2+ {[%clk 0:00:28]} 34. Kg3 {[%clk 0:00:09]}  Qxg8 {[%clk 0:00:26]} 35. Qxg8+ {[%clk 0:00:09]}  Kc7 {[%clk 0:00:27]} 36. f6 {[%clk 0:00:07]}  d3 {[%clk 0:00:24]} 37. Qd5 {[%clk 0:00:07]}  d2 {[%clk 0:00:21]} 38. f7 {[%clk 0:00:07]}  Rc3+ {[%clk 0:00:19]} 39. Kh4 {[%clk 0:00:07]}  Rc6 {[%clk 0:00:10]} 40. f8=Q {[%clk 0:00:05]}  Rd6 {[%clk 0:00:07]} 41. Qfxd6+ {[%clk 0:00:05]} 1-0